[Event "Bicaz City Cup 2020"]
[Site "Bicaz"]
[Date "2020.03.06"]
[Round "3.10"]
[White "Visoescu, Alexandru-Bogdan"]
[Black "Arghirescu, Andrei"]
[Result "1/2-1/2"]
[ECO "A04"]
[WhiteElo "1756"]
[BlackElo "2015"]
[Annotator "ChessBase"]
[PlyCount "246"]
[EventDate "2020.03.05"]
[EventType "swiss"]
[EventCountry "ROU"]
[SourceTitle "playchess.com"]
[Source "ChessBase"]
[SourceQuality "1"]
[TimeControl "5400+30"]

1. Nf3 {[%emt 0:10:38]} b6 {[%emt 0:00:00]} 2. g3 {[%emt 0:00:06]} Bb7 {[%emt 0:00:00]} 3. Bg2 {[%emt 0:00:04]} Nf6 {[%emt 0:00:06]} 4. c4 {[%emt 0:00:22]} g6 {[%emt 0:00:16]} 5. O-O Bg7 6. d4 {[%emt 0:00:19]} O-O {[%emt 0:00:16]} 7. Nc3 {[%emt 0:00:32]} d6 {[%emt 0:00:26]} 8. Qc2 {[%emt 0:00:30]} Nbd7 {[%emt 0:01:54]} 9. Rd1 {[%emt 0:01:20]} c5 {[%emt 0:01:12]} 10. b3 {[%emt 0:03:59]} cxd4 {[%emt 0:02:53]} 11. Nxd4 {[%emt 0:00:10]} Bxg2 {[%emt 0:01:12]} 12. Kxg2 {[%emt 0:00:07]} Rc8 {[%emt 0:00:33]} 13. Nf3 {[%emt 0:01:06]} Qc7 {[%emt 0:18:57]} 14. Bb2 {[%emt 0:17:26]} Qb7 {[%emt 0:03:13]} 15. Kg1 {[%emt 0:02:20]} Rfd8 {[%emt 0:08:53]} 16. Rac1 {[%emt 0:02:23]} Nf8 {[%emt 0:01:04]} 17. e4 {[%emt 0:08:16]} Nxe4 {[%emt 0:03:53]} 18. Nd5 {[%emt 0:07:02]} Nf6 {[%emt 0:09:22]} 19. Bxf6 {[%emt 0:01:07]} exf6 {[%emt 0:01:36]} 20. Qe4 {[%emt 0:00:32]} Rd7 {[%emt 0:25:47]} 21. Nd4 {[%emt 0:04:24]} a6 {[%emt 0:06:51]} 22. Qh4 {[%emt 0:01:37]} Re8 {[%emt 0:08:43]} 23. Nxf6+ {[%emt 0:00:56]} Bxf6 {[%emt 0:00:01]} 24. Qxf6 {[%emt 0:00:13]} Qe4 {[%emt 0:01:32]} 25. Nc2 {[%emt 0:02:07]} Qe5 {[%emt 0:01:14]} 26. Qf3 {[%emt 0:02:54]} Qe4 {[%emt 0:00:42]} 27. Qxe4 {[%emt 0:01:33]} Rxe4 {[%emt 0:00:01]} 28. Rd2 {[%emt 0:00:58]} f5 {[%emt 0:01:48]} 29. Rcd1 {[%emt 0:00:07]} Re6 {[%emt 0:00:09]} 30. Nb4 {[%emt 0:00:28]} a5 {[%emt 0:01:14]} 31. Nd5 {[%emt 0:00:08]} Rb7 {[%emt 0:00:40]} 32. Nf4 {[%emt 0:00:02]} Re4 {[%emt 0:00:41]} 33. Rxd6 {[%emt 0:00:16]} b5 {[%emt 0:00:37]} 34. c5 {[%emt 0:00:54]} Kf7 {[%emt 0:00:39]} 35. f3 {[%emt 0:00:55]} Re8 {[%emt 0:00:31]} 36. c6 {[%emt 0:00:25]} Rc7 {[%emt 0:00:33]} 37. R1d5 {[%emt 0:01:35]} Rb8 {[%emt 0:00:30]} 38. Nd3 {[%emt 0:01:01]} Rb6 {[%emt 0:00:24]} 39. Ne5+ {[%emt 0:02:08]} Ke7 {[%emt 0:00:03]} 40. Rd8 {[%emt 0:00:32]} Rbxc6 {[%emt 0:00:53]} 41. Nxc6+ {[%emt 0:00:25]} Rxc6 {[%emt 0:00:01]} 42. Rd2 {[%emt 0:00:32]} a4 {[%emt 0:00:27]} 43. Rb8 {[%emt 0:00:39]} axb3 {[%emt 0:00:19]} 44. axb3 {[%emt 0:00:10]} Rc3 {[%emt 0:00:27]} 45. Rxb5 {[%emt 0:00:08]} Rxf3 {[%emt 0:00:12]} 46. Rb7+ {[%emt 0:00:09]} Kf6 {[%emt 0:00:33]} 47. Kg2 {[%emt 0:00:15]} Rc3 {[%emt 0:00:12]} 48. b4 {[%emt 0:00:18]} h5 {[%emt 0:00:34]} 49. Re2 {[%emt 0:00:10]} g5 {[%emt 0:00:59]} 50. Rb5 {[%emt 0:00:29]} f4 {[%emt 0:00:44]} 51. gxf4 {[%emt 0:01:45]} gxf4 {[%emt 0:00:03]} 52. Rf2 {[%emt 0:00:10]} Rc4 {[%emt 0:00:47]} 53. Ra2 {[%emt 0:01:01]} Ne6 {[%emt 0:00:44]} 54. Ra6 {[%emt 0:00:09]} Rc2+ {[%emt 0:01:03]} 55. Kf3 {[%emt 0:00:38]} Rxh2 {[%emt 0:00:23]} 56. Rbb6 {[%emt 0:00:01]} Rh3+ {[%emt 0:00:09]} 57. Ke4 {[%emt 0:00:11]} Re3+ {[%emt 0:00:08]} 58. Kd5 {[%emt 0:00:08]} Re5+ {[%emt 0:00:13]} 59. Kc4 {[%emt 0:03:10]} f3 {[%emt 0:00:30]} 60. Ra1 {[%emt 0:00:16]} f2 {[%emt 0:01:25]} 61. Rf1 {[%emt 0:00:09]} Rf5 {[%emt 0:00:14]} 62. Kd3 {[%emt 0:00:32]} Ke7 {[%emt 0:00:56]} 63. Ke3 {[%emt 0:00:18]} Nc7 {[%emt 0:00:36]} 64. Rb7 {[%emt 0:00:19]} Kd6 {[%emt 0:00:10]} 65. Rxf2 {[%emt 0:00:44]} Nd5+ {[%emt 0:00:43]} 66. Ke2 {[%emt 0:00:25]} Re5+ {[%emt 0:00:38]} 67. Kd3 {[%emt 0:00:20]} Kc6 {[%emt 0:00:13]} 68. Rb8 {[%emt 0:00:25]} Kc7 {[%emt 0:00:33]} 69. Rff8 {[%emt 0:00:28]} Nb6 {[%emt 0:00:19]} 70. Rbe8 {[%emt 0:00:20]} Rd5+ {[%emt 0:00:20]} 71. Kc3 {[%emt 0:00:13]} Na4+ {[%emt 0:00:55]} 72. Kb3 {[%emt 0:00:13]} Nb6 {[%emt 0:00:13]} 73. Rf7+ {[%emt 0:01:19]} Nd7 {[%emt 0:00:31]} 74. Rh8 {[%emt 0:00:19]} Kc6 {[%emt 0:00:45]} 75. Rfh7 {[%emt 0:00:18]} Rd3+ {[%emt 0:00:28]} 76. Kc2 {[%emt 0:00:19]} Rd4 {[%emt 0:00:20]} 77. Kc3 {[%emt 0:00:06]} Rg4 {[%emt 0:00:47]} 78. Rxh5 {[%emt 0:00:27]} Rg3+ {[%emt 0:00:05]} 79. Kb2 {[%emt 0:00:23]} Rg2+ {[%emt 0:00:09]} 80. Ka3 {[%emt 0:00:17]} Rg3+ {[%emt 0:00:08]} 81. Kb2 {[%emt 0:00:51]} Rg2+ {[%emt 0:00:03]} 82. Kc3 {[%emt 0:00:10]} Rg3+ {[%emt 0:00:01]} 83. Kd2 {[%emt 0:00:10]} Rg2+ {[%emt 0:00:05]} 84. Ke3 {[%emt 0:00:12]} Rg3+ {[%emt 0:00:05]} 85. Kf2 {[%emt 0:00:15]} Rb3 {[%emt 0:00:22]} 86. R8h6+ {[%emt 0:00:11]} Kc7 {[%emt 0:00:38]} 87. b5 {[%emt 0:00:21]} Kc8 {[%emt 0:01:43]} 88. Ke2 {[%emt 0:00:17]} Kb7 {[%emt 0:00:46]} 89. Rh7 {[%emt 0:00:23]} Kc8 {[%emt 0:00:17]} 90. Rg5 {[%emt 0:00:41]} Rb2+ {[%emt 0:00:37]} 91. Kd3 {[%emt 0:00:11]} Rb3+ {[%emt 0:00:36]} 92. Kc4 {[%emt 0:00:09]} Rb1 {[%emt 0:00:19]} 93. Rg8+ {[%emt 0:00:20]} Kc7 {[%emt 0:00:05]} 94. Rgg7 {[%emt 0:00:13]} Rc1+ {[%emt 0:00:27]} 95. Kb3 {[%emt 0:00:14]} Rd1 {[%emt 0:00:13]} 96. Rh6 {[%emt 0:00:32]} Rb1+ {[%emt 0:00:32]} 97. Kc4 {[%emt 0:00:08]} Rc1+ {[%emt 0:00:07]} 98. Kd4 {[%emt 0:00:17]} Rd1+ {[%emt 0:00:17]} 99. Ke4 {[%emt 0:00:09]} Re1+ {[%emt 0:00:39]} 100. Kf5 {[%emt 0:00:15]} Re5+ {[%emt 0:00:30]} 101. Kf4 {[%emt 0:00:52]} Rxb5 {[%emt 0:00:09]} 102. Ra6 {[%emt 0:00:23]} Rb4+ {[%emt 0:00:52]} 103. Kf5 {[%emt 0:00:39]} Rb5+ {[%emt 0:00:35]} 104. Ke6 {[%emt 0:00:15]} Re5+ {[%emt 0:00:17]} 105. Kf7 {[%emt 0:00:07]} Kb7 {[%emt 0:02:04]} 106. Re6 {[%emt 0:00:26]} Rc5 {[%emt 0:01:42]} 107. Ke8 {[%emt 0:00:09]} Rc8+ {[%emt 0:00:09]} 108. Ke7 {[%emt 0:00:57]} Nb6 {[%emt 0:00:56]} 109. Kf6+ {[%emt 0:00:44]} Rc7 {[%emt 0:00:30]} 110. Rxc7+ {[%emt 0:01:14]} Kxc7 {[%emt 0:00:02]} 111. Ke5 {[%emt 0:00:13]} Nd7+ {[%emt 0:00:18]} 112. Kd5 {[%emt 0:00:12]} Nb6+ {[%emt 0:00:07]} 113. Kc5 {[%emt 0:00:12]} Nd7+ {[%emt 0:00:10]} 114. Kb5 {[%emt 0:00:09]} Kb7 {[%emt 0:00:32]} 115. Rh6 {[%emt 0:00:10]} Kc7 {[%emt 0:00:03]} 116. Rc6+ {[%emt 0:00:32]} Kb7 {[%emt 0:00:10]} 117. Ra6 {[%emt 0:00:31]} Kc7 {[%emt 0:00:15]} 118. Kc4 {[%emt 0:00:22]} Kb7 {[%emt 0:00:13]} 119. Rh6 {[%emt 0:00:22]} Kc7 {[%emt 0:00:07]} 120. Kd5 {[%emt 0:00:06]} Nb6+ {[%emt 0:00:09]} 121. Kc5 {[%emt 0:00:21]} Nd7+ {[%emt 0:00:04]} 122. Kb5 {[%emt 0:00:12]} Kb7 {[%emt 0:00:12]} 123. Rc6 {[%emt 0:00:06]} Nb8 {[%emt 0:00:21]} 1/2-1/2

[Event "Bicaz City Cup 2020"]
[Site "Bicaz"]
[Date "2020.03.06"]
[Round "3.11"]
[White "Lupu, Ovidiu-Jean"]
[Black "Maria, Lia-Alexandra"]
[Result "0-1"]
[ECO "D00"]
[WhiteElo "2129"]
[BlackElo "1547"]
[Annotator "ChessBase"]
[PlyCount "56"]
[EventDate "2020.03.05"]
[EventType "swiss"]
[EventCountry "ROU"]
[SourceTitle "playchess.com"]
[Source "ChessBase"]
[SourceQuality "1"]
[TimeControl "5400+30"]

1. d4 {[%emt 0:02:13]} d5 {[%emt 0:00:00]} 2. Nc3 {[%emt 0:00:36]} Nf6 {[%emt 0:00:23]} 3. Bf4 {[%emt 0:00:12]} c6 {[%emt 0:00:11]} 4. e3 {[%emt 0:00:10]} Bf5 {[%emt 0:06:14]} 5. f3 {[%emt 0:00:24]} b5 {[%emt 0:00:46]} 6. g4 {[%emt 0:00:24]} Bg6 {[%emt 0:00:54]} 7. h4 {[%emt 0:00:10]} h5 {[%emt 0:01:47]} 8. g5 {[%emt 0:00:10]} Nfd7 {[%emt 0:00:40]} 9. Bd3 {[%emt 0:00:13]} Bxd3 {[%emt 0:00:38]} 10. Qxd3 {[%emt 0:00:02]} Nb6 {[%emt 0:02:13]} 11. g6 {[%emt 0:00:27]} f6 {[%emt 0:01:12]} 12. O-O-O {[%emt 0:08:18]} Nc4 {[%emt 0:08:45]} 13. e4 Qa5 14. Kb1 {[%emt 0:01:39]} Qb4 {[%emt 0:04:06]} 15. Bc1 {[%emt 0:00:47]} e6 {[%emt 0:01:06]} 16. exd5 {[%emt 0:00:46]} cxd5 {[%emt 0:01:19]} 17. Qe2 {[%emt 0:02:41]} Be7 {[%emt 0:01:06]} 18. Rh2 {[%emt 0:00:33]} Qd6 {[%emt 0:08:10]} 19. Nxb5 {[%emt 0:07:55]} Qb6 {[%emt 0:00:35]} 20. Nh3 {[%emt 0:02:41]} Qxb5 {[%emt 0:01:29]} 21. Qxe6 {[%emt 0:00:13]} Nc6 {[%emt 0:03:30]} 22. Nf4 {[%emt 0:00:29]} Rd8 {[%emt 0:02:05]} 23. Re2 {[%emt 0:03:35]} a5 {[%emt 0:07:55]} 24. Qf7+ {[%emt 0:00:50]} Kd7 {[%emt 0:00:22]} 25. Nxd5 {[%emt 0:00:04]} Na3+ {[%emt 0:00:50]} 26. Ka1 {[%emt 0:02:32]} Qxe2 27. Nc3 Qxc2 {[%emt 0:07:45]} 28. d5 {[%emt 0:03:50]} Qb1+ {[%emt 0:00:19] Qe6+} 0-1

[Event "Bicaz City Cup 2020"]
[Site "Bicaz"]
[Date "2020.03.06"]
[Round "3.13"]
[White "Andronescu, Madalin"]
[Black "Pirvan, Maria"]
[Result "1-0"]
[ECO "B33"]
[WhiteElo "2148"]
[BlackElo "1532"]
[Annotator "ChessBase"]
[PlyCount "77"]
[EventDate "2020.03.05"]
[EventType "swiss"]
[EventCountry "ROU"]
[SourceTitle "playchess.com"]
[Source "ChessBase"]
[SourceQuality "1"]
[TimeControl "5400+30"]

1. e4 {[%emt 0:06:29]} c5 {[%emt 0:00:00]} 2. Nf3 {[%emt 0:00:08]} Nc6 {[%emt 0:00:00]} 3. d4 {[%emt 0:00:05]} cxd4 {[%emt 0:00:05]} 4. Nxd4 {[%emt 0:00:06]} Nf6 {[%emt 0:00:08]} 5. Nc3 {[%emt 0:00:04]} e5 {[%emt 0:00:05]} 6. Ndb5 {[%emt 0:00:06]} d6 {[%emt 0:00:06]} 7. Bg5 {[%emt 0:00:07]} a6 {[%emt 0:00:06]} 8. Na3 {[%emt 0:00:05]} b5 {[%emt 0:00:05]} 9. Bxf6 {[%emt 0:00:16]} gxf6 {[%emt 0:00:07]} 10. Nd5 {[%emt 0:00:06]} Bg7 {[%emt 0:00:05]} 11. Bd3 {[%emt 0:04:43]} Ne7 {[%emt 0:01:17]} 12. Nxe7 {[%emt 0:01:23]} Qxe7 {[%emt 0:00:07]} 13. c4 {[%emt 0:00:04]} f5 {[%emt 0:02:24]} 14. cxb5 {[%emt 0:00:07]} d5 {[%emt 0:00:17]} 15. bxa6 {[%emt 0:03:05]} Qb4+ {[%emt 0:28:59]} 16. Qd2 {[%emt 0:00:39]} Qxd2+ {[%emt 0:00:25]} 17. Kxd2 {[%emt 0:00:05]} fxe4 {[%emt 0:01:48]} 18. Bb5+ {[%emt 0:00:23]} Bd7 {[%emt 0:00:24]} 19. Ke2 {[%emt 0:02:01]} Bf8 {[%emt 0:17:27]} 20. Bxd7+ {[%emt 0:02:43]} Kxd7 {[%emt 0:00:08]} 21. Nb5 {[%emt 0:00:06]} Rxa6 {[%emt 0:05:36]} 22. Nc3 {[%emt 0:13:39]} Ke6 {[%emt 0:00:49]} 23. Rhd1 {[%emt 0:00:06]} Rd6 {[%emt 0:00:37]} 24. a4 {[%emt 0:00:50]} Bh6 {[%emt 0:04:49]} 25. b4 {[%emt 0:00:46]} Rc8 {[%emt 0:01:58]} 26. Ra3 {[%emt 0:00:06]} f5 {[%emt 0:08:25]} 27. a5 {[%emt 0:00:07]} d4 {[%emt 0:00:25]} 28. Na4 {[%emt 0:03:41]} Rc2+ {[%emt 0:13:28]} 29. Ke1 {[%emt 0:00:06]} d3 {[%emt 0:07:53]} 30. a6 {[%emt 0:00:15]} Rd8 {[%emt 0:04:17]} 31. a7 {[%emt 0:00:07]} Rg8 {[%emt 0:00:29]} 32. Nc5+ {[%emt 0:00:41]} Kf6 {[%emt 0:02:11]} 33. a8=Q {[%emt 0:00:12]} Rxg2 {[%emt 0:00:44]} 34. Ra6+ {[%emt 0:00:10]} Kf7 {[%emt 0:00:40]} 35. Qd5+ {[%emt 0:01:22]} Kg7 {[%emt 0:00:31]} 36. Qxe5+ {[%emt 0:01:50]} Kg8 {[%emt 0:00:28]} 37. Qe6+ {[%emt 0:00:08]} Kg7 {[%emt 0:00:32]} 38. Qf6+ {[%emt 0:00:21]} Kg8 {[%emt 0:00:19]} 39. Ra8+ {[%emt 0:00:06]} 1-0

[Event "Bicaz City Cup 2020"]
[Site "Bicaz"]
[Date "2020.03.06"]
[Round "3.14"]
[White "Vilcu, Matei-Stefan"]
[Black "Costiuc, Ioan"]
[Result "1-0"]
[ECO "C00"]
[WhiteElo "2037"]
[BlackElo "1561"]
[Annotator "ChessBase"]
[PlyCount "67"]
[EventDate "2020.03.05"]
[EventType "swiss"]
[EventCountry "ROU"]
[SourceTitle "playchess.com"]
[Source "ChessBase"]
[SourceQuality "1"]
[TimeControl "5400+30"]

1. e4 {[%emt 0:00:00]} e6 {[%emt 0:01:22]} 2. d3 {[%emt 0:00:00]} Nf6 {[%emt 0:00:11]} 3. Nd2 {[%emt 0:00:15]} d5 {[%emt 0:00:07]} 4. g3 {[%emt 0:00:04]} dxe4 {[%emt 0:00:47]} 5. dxe4 {[%emt 0:00:05]} Bc5 {[%emt 0:00:51]} 6. Bg2 {[%emt 0:01:18]} c6 {[%emt 0:00:07]} 7. Ngf3 {[%emt 0:00:11]} O-O {[%emt 0:00:45]} 8. O-O {[%emt 0:00:10]} Re8 {[%emt 0:00:18]} 9. e5 {[%emt 0:00:38]} Nd5 {[%emt 0:00:22]} 10. Ne4 {[%emt 0:00:38]} Bb6 {[%emt 0:01:18]} 11. c4 {[%emt 0:00:44]} Ne7 {[%emt 0:03:24]} 12. Nd6 {[%emt 0:01:06]} Rf8 {[%emt 0:00:32]} 13. Bg5 {[%emt 0:02:33]} h6 {[%emt 0:00:11]} 14. Nxc8 {[%emt 0:01:12]} Qxd1 {[%emt 0:01:24]} 15. Nxe7+ {[%emt 0:00:21]} Kh8 {[%emt 0:01:06]} 16. Raxd1 {[%emt 0:00:07]} hxg5 {[%emt 0:00:38]} 17. Nxg5 {[%emt 0:00:12]} Na6 {[%emt 0:01:41]} 18. Nxe6 {[%emt 0:04:08]} Rfe8 {[%emt 0:02:58]} 19. Nxg7 {[%emt 0:01:59]} Rxe7 {[%emt 0:00:46]} 20. Nf5 {[%emt 0:00:08]} Rxe5 {[%emt 0:01:09]} 21. Nd6 {[%emt 0:00:16]} Re7 {[%emt 0:00:41]} 22. Rfe1 {[%emt 0:00:33]} Rxe1+ {[%emt 0:01:29]} 23. Rxe1 {[%emt 0:00:28]} Nc5 {[%emt 0:03:10]} 24. Nxf7+ {[%emt 0:01:00]} Kg7 {[%emt 0:00:02]} 25. Ne5 {[%emt 0:02:09]} Rf8 {[%emt 0:00:32]} 26. b4 {[%emt 0:01:08]} Nd7 {[%emt 0:01:46]} 27. Nxd7 {[%emt 0:02:00]} Bxf2+ {[%emt 0:00:13]} 28. Kf1 {[%emt 0:00:09]} Bxe1+ {[%emt 0:00:39]} 29. Nxf8 {[%emt 0:00:04]} Bxb4 {[%emt 0:02:04]} 30. Nd7 {[%emt 0:00:26]} Bd6 {[%emt 0:04:37]} 31. Kf2 {[%emt 0:01:05]} Kf7 {[%emt 0:01:34]} 32. h4 {[%emt 0:00:11]} Ke7 {[%emt 0:00:08]} 33. Bh3 {[%emt 0:00:03]} b6 {[%emt 0:01:23]} 34. h5 {[%emt 0:00:13]} 1-0

[Event "Bicaz City Cup 2020"]
[Site "Bicaz"]
[Date "2020.03.06"]
[Round "3.15"]
[White "Ciomaga, Andrei"]
[Black "Mintau, Andrei-Catalin"]
[Result "0-1"]
[ECO "A56"]
[WhiteElo "1430"]
[BlackElo "1984"]
[Annotator "ChessBase"]
[PlyCount "82"]
[EventDate "2020.03.05"]
[EventType "swiss"]
[EventCountry "ROU"]
[SourceTitle "playchess.com"]
[Source "ChessBase"]
[SourceQuality "1"]
[TimeControl "5400+30"]

1. d4 {[%emt 0:03:23]} Nf6 {[%emt 0:00:00]} 2. c4 {[%emt 0:00:21]} c5 {[%emt 0:00:00]} 3. e3 {[%emt 0:00:11]} d6 {[%emt 0:00:50]} 4. Nf3 {[%emt 0:00:39]} cxd4 {[%emt 0:01:18]} 5. exd4 {[%emt 0:00:08]} e6 {[%emt 0:00:04]} 6. Nc3 {[%emt 0:00:15]} Be7 {[%emt 0:00:09]} 7. Bd3 {[%emt 0:02:08]} O-O {[%emt 0:02:57]} 8. O-O {[%emt 0:00:39]} b6 {[%emt 0:00:21]} 9. Bg5 {[%emt 0:01:07]} Nbd7 {[%emt 0:01:03]} 10. Qe2 {[%emt 0:01:46]} Bb7 {[%emt 0:00:34]} 11. b4 {[%emt 0:04:09]} Re8 {[%emt 0:06:32]} 12. Rab1 {[%emt 0:08:50]} Qc7 {[%emt 0:08:12]} 13. Rfc1 {[%emt 0:02:14]} Rac8 {[%emt 0:02:14]} 14. a4 {[%emt 0:06:42]} h6 {[%emt 0:09:32]} 15. Bh4 {[%emt 0:01:13]} Qb8 {[%emt 0:01:16]} 16. Bg3 {[%emt 0:03:10]} Qa8 {[%emt 0:01:01]} 17. Nb5 {[%emt 0:03:35]} Bxf3 {[%emt 0:03:23]} 18. Qxf3 {[%emt 0:00:14]} Qxf3 {[%emt 0:00:15]} 19. gxf3 {[%emt 0:00:16]} e5 {[%emt 0:00:09]} 20. d5 {[%emt 0:01:21]} a6 {[%emt 0:00:13]} 21. Nc3 {[%emt 0:00:19]} Nh5 {[%emt 0:01:42]} 22. Ne2 {[%emt 0:05:25]} Bg5 {[%emt 0:01:15]} 23. Rc3 {[%emt 0:01:21]} g6 {[%emt 0:00:55]} 24. h4 {[%emt 0:00:29]} Nxg3 {[%emt 0:00:30]} 25. fxg3 {[%emt 0:00:32]} Bd2 {[%emt 0:01:38]} 26. Rc2 {[%emt 0:04:10]} Be3+ {[%emt 0:00:05]} 27. Kg2 {[%emt 0:00:16]} f5 {[%emt 0:00:05]} 28. Nc3 {[%emt 0:02:24]} Nf6 {[%emt 0:00:16]} 29. Re2 {[%emt 0:00:19]} Bd4 {[%emt 0:00:03]} 30. Rc1 {[%emt 0:00:31]} Bxc3 {[%emt 0:00:18]} 31. Rxc3 {[%emt 0:00:07]} e4 {[%emt 0:00:27]} 32. fxe4 {[%emt 0:01:17]} fxe4 {[%emt 0:00:01]} 33. Bb1 {[%emt 0:00:17]} Nxd5 {[%emt 0:00:07]} 34. Rc1 {[%emt 0:01:05]} Nxb4 {[%emt 0:00:45]} 35. Bxe4 {[%emt 0:00:27]} Kg7 {[%emt 0:00:08]} 36. Kf3 {[%emt 0:00:57]} d5 {[%emt 0:01:00]} 37. Bb1 {[%emt 0:00:47]} Rxe2 {[%emt 0:00:35]} 38. Kxe2 {[%emt 0:00:22]} dxc4 {[%emt 0:00:05]} 39. Ke3 {[%emt 0:00:45]} c3 {[%emt 0:00:34]} 40. Bd3 {[%emt 0:01:14]} c2 {[%emt 0:01:13]} 41. Kd2 {[%emt 0:01:08]} Rd8 {[%emt 0:00:05]} 0-1

[Event "Bicaz City Cup 2020"]
[Site "Bicaz"]
[Date "2020.03.06"]
[Round "3.16"]
[White "Chiprian, Ionel"]
[Black "Toma, Stefan"]
[Result "1/2-1/2"]
[ECO "A05"]
[WhiteElo "1861"]
[BlackElo "1508"]
[Annotator "NA"]
[PlyCount "95"]
[EventDate "2020.03.05"]
[EventType "swiss"]
[EventCountry "ROU"]
[SourceTitle "playchess.com"]
[Source "ChessBase"]
[SourceQuality "1"]
[TimeControl "5400+30"]

1. Nf3 {[%emt 0:00:00]} Nf6 {[%emt 0:00:51]} 2. c4 {[%emt 0:00:00]} e6 {[%emt 0:00:08]} 3. Nc3 {[%emt 0:00:28]} d5 {[%emt 0:00:16]} 4. d4 {[%emt 0:00:18]} Be7 {[%emt 0:00:11]} 5. g3 {[%emt 0:00:15]} b6 {[%emt 0:00:58]} 6. Bg2 {[%emt 0:01:01]} Bb7 {[%emt 0:00:33]} 7. O-O {[%emt 0:00:42] E17: Queen's Indian: 4 g3 Bb7 5 Bg2 Be7.} Nbd7 {[%emt 0:03:09]} 8. b3 {[%emt 0:02:48]} Rc8 {[%emt 0:02:07] [#]} 9. cxd5 $146 {[%emt 0:02:44]} ({Predecessor:} 9. Bb2 O-O 10. Ne5 c5 11. e3 Ba6 12. Nb5 Bxb5 13. cxb5 Qc7 14. Nc6 Bd6 15. f4 Nb8 16. Nxb8 Rxb8 17. Rc1 Qd7 18. a4 {0-1 (56) Ngendo,J-Abera,Y (2201) Dresden 2008}) 9... Nxd5 {[%emt 0:00:34]} 10. Bb2 {[%emt 0:01:08]} Nxc3 {[%emt 0:00:22]} 11. Bxc3 {[%emt 0:00:13]} O-O {[%emt 0:01:08]} 12. Bb2 {[%emt 0:06:40]} c5 {[%emt 0:00:46]} 13. Qd3 {[%emt 0:07:04]} Nf6 {[%emt 0:02:18]} 14. Rac1 {[%emt 0:04:27]} cxd4 {[%emt 0:10:37]} 15. Qxd4 {[%emt 0:03:16]} Qxd4 {[%emt 0:10:34]} 16. Nxd4 {[%emt 0:00:16]} Bxg2 {[%emt 0:00:50]} 17. Kxg2 {[%emt 0:00:07]} Bc5 {[%emt 0:04:47]} 18. e3 {[%emt 0:02:05]} Nd5 {[%emt 0:05:06]} 19. a3 {[%emt 0:01:20]} Bxd4 {[%emt 0:03:33]} 20. Bxd4 {[%emt 0:00:25]} f6 {[%emt 0:00:41]} 21. Bb2 {[%emt 0:07:40]} Rfd8 {[%emt 0:06:24]} 22. Kf3 {[%emt 0:02:15]} Kf7 {[%emt 0:00:22]} 23. Rfd1 {[%emt 0:05:45]} Rxc1 {[%emt 0:00:37]} 24. Rxc1 {[%emt 0:00:02]} Rd7 {[%emt 0:00:12]} 25. e4 {[%emt 0:01:49]} Nc7 {[%emt 0:04:34]} 26. Ke3 {[%emt 0:00:33]} e5 {[%emt 0:00:20]} 27. f4 {[%emt 0:00:30]} exf4+ {[%emt 0:05:16]} 28. gxf4 {[%emt 0:00:04]} g5 {[%emt 0:00:47]} 29. fxg5 {[%emt 0:00:46]} fxg5 {[%emt 0:00:21]} 30. Rf1+ {[%emt 0:01:29]} Kg6 {[%emt 0:00:50]} 31. Rf6+ {[%emt 0:02:29]} Kh5 {[%emt 0:00:20]} 32. a4 {[%emt 0:03:40]} Re7 {[%emt 0:04:54] [#]} 33. Kf3 {[%emt 0:02:56]} (33. Ba3 $1 $16 {[%cal Ra3e7]} Nd5+ 34. Kd4 Nxf6 35. Bxe7) 33... Rd7 {[%emt 0:00:08]} 34. Ke3 {[%emt 0:00:30]} Re7 {[%emt 0:00:58]} 35. Kd3 {[%emt 0:02:15]} Rd7+ {[%emt 0:01:57]} 36. Kc4 {[%emt 0:03:56]} Ne8 {[%emt 0:03:19]} 37. Re6 {[%emt 0:01:10]} Nd6+ {[%emt 0:01:44]} 38. Kc3 {[%emt 0:01:06]} Rc7+ {[%emt 0:00:49]} 39. Kd3 {[%emt 0:00:37]} Nb7 {[%emt 0:01:00]} 40. b4 {[%emt 0:01:25]} Nd8 $11 {[%emt 0:01:07]} 41. Rd6 {[%emt 0:04:38]} Nf7 {[%emt 0:00:26]} 42. Re6 {[%emt 0:00:50]} Rd7+ {[%emt 0:00:51]} 43. Ke3 {[%emt 0:00:09]} Nd6 {[%emt 0:00:11]} 44. Bc3 {[%emt 0:06:13]} Nc4+ {[%emt 0:00:59]} 45. Ke2 $14 {[%emt 0:00:26]} Kg4 {[%emt 0:02:01]} 46. Rc6 Nd6 47. e5 Ne4 48. e6 1/2-1/2